Cogmind - Beta 16.1 @@@ ROGUE MODE // 2026.01.18 @ 16:36:27 Player: BoomBlip Result: Destroyed by G-47 Trooper with Particle Gun Performance ------------- Evolutions (2) 1000 Regions Visited (3) 600 Robots Destroyed (33) 165 Value Destroyed (1022) 1022 Prototype IDs (0) 0 Alien Tech Used (0) 0 Bonus (0) 0 TOTAL SCORE: 2787 Bonus ------- None Cogmind --------- Core Integrity 0/550 Matter 219/300 Energy 114/240 System Corruption 0% Temperature Cool (66) Movement Rolling (115) Ox1 Location -8/Materials Parts ------- > --- POWER (1) -------- Nuclear Core > --- PROPULSION (3) --- Compact Wheel > --- UTILITY (5) ------ Medium Storage Unit Improved Targeting Computer > --- WEAPON (2) ------- Arc Projector > --- INVENTORY (10) --- Medium Storage Unit Improved Targeting Computer Improved Targeting Computer Missile Launcher Peak State ------------ > --- POWER ------------ Nuclear Core > --- PROPULSION ------- Aluminum Leg Aluminum Leg Aluminum Leg > --- UTILITY ---------- Heat Sink Improved Heat Sink Improved Heat Sink Medium Storage Unit Improved Targeting Computer > --- WEAPON ----------- Arc Projector Arc Projector > --- INVENTORY -------- Nuclear Core Medium Storage Unit Improved Targeting Computer Improved Targeting Computer Light Assault Rifle Light Assault Rifle Light Assault Rifle Heavy Assault Rifle Missile Launcher [Rating: 25] Favorites ----------- Power Ion Engine Engine Ion Engine Power Core Nuclear Core Propulsion Aluminum Leg Leg Aluminum Leg Wheel Compact Wheel Utility Improved Targeting Computer Device Improved Heat Sink Storage Medium Storage Unit Processor Improved Targeting Computer Protection Light Armor Plating Weapon Heavy Assault Rifle Energy Gun Small Laser Ballistic Gun Heavy Assault Rifle Build | -11 -10 -9 -8 ------- Run | Yrd Mat Mat Mat Slots Evolved 4 | . . 2 2 Power . | . . . . Propulsion 1 | . . . 1 Utility 3 | . . 2 1 Weapon . | . . . . Parts Attached 32 | . 6 3 23 Power 6 | . 1 2 3 Engine 3 | . 1 1 1 Core 3 | . . 1 2 Reactor . | . . . . Propulsion 9 | . 1 . 8 Treads . | . . . . Leg 8 | . 1 . 7 Wheel 1 | . . . 1 Hover . | . . . . Flight . | . . . . Utility 7 | . 1 1 5 Device 3 | . . . 3 Storage 2 | . . 1 1 Processor 1 | . 1 . . Hackware . | . . . . Protection 1 | . . . 1 Artifact . | . . . . Weapon 10 | . 3 . 7 Energy Gun 2 | . . . 2 Energy Cannon . | . . . . Ballistic Gun 8 | . 3 . 5 Ballistic Cannon . | . . . . Launcher . | . . . . Special Weapon . | . . . . Impact Weapon . | . . . . Slashing Weapon . | . . . . Piercing Weapon . | . . . . Special Melee Weapon . | . . . . Unidentified Prototypes . | . . . . Parts Lost 22 | . . 1 21 Power 3 | . . 1 2 Propulsion 8 | . . . 8 Utility 4 | . . . 4 Weapon 7 | . . . 7 Highest Loss Streak 13 | . . 1 13 To Critical Strikes . | . . . . Average Backups 8 | . 7 8 9 Power 1 | . . . 1 Propulsion 1 | . 2 2 1 Utility 2 | . 1 2 2 Weapon 3 | . 2 3 3 Tool/Special . | . . . . Unused Backups 7 | . 3 . 4 Power 2 | . 2 . . Propulsion . | . . . . Utility 2 | . . . 2 Weapon 3 | . 1 . 2 Tool/Special . | . . . . Average Slot Usage (%) 81 | . 95 76 77 Engine 8 | . 14 9 4 Core 1 | . . . 3 Leg 22 | . 28 22 20 Device 6 | . . . 12 Storage 10 | . 14 11 9 Processor 9 | . 10 11 9 Energy Gun 2 | . 10 . . Ballistic Gun 17 | . 17 22 15 Peak Build Rating 25 | . 10 12 25 Average Rating 12 | . 9 10 15 On Entrance 9 | 7 7 10 12 Avg Prop Armor Cover (%) . | . . . . Naked Turns . | . . . . Heaviest Build 24 | 11 15 22 24 Greatest Support 30 | 20 20 20 30 Greatest Overweight (x) 5 | . . 1 5 Average Overweight (x) . | . . . . Largest Inventory Capacity 10 | . 8 10 10 Average Capacity 9 | . 8 9 10 Most Carried 10 | . 8 10 10 Average Carried 8 | . 7 8 9 Final Capacity 10 | 8 8 10 10 Final Carried 10 | 7 8 10 4 Class Distribution -------------------- 62% | Mutant 37% | Scavenger-Mutant Dominant Class ---------------- Mutant | -10/Materials Mutant | -9/Materials Scavenger-Mutant | -8/Materials Resources | -11 -10 -9 -8 ----------- Run | Yrd Mat Mat Mat Matter Collected 896 | 200 104 133 459 Remotely . | . . . . Salvage Created 1257 | . 164 229 864 Parts 68 | . 20 8 40 Haulers Intercepted 1 | . . . 1 Recyclers Shooed . | . . . . Parts Field Recycled . | . . . . Retrieved Matter . | . . . . Parts Self-Destructed . | . . . . Prevented . | . . . . Parts Restored . | . . . . Kills | -11 -10 -9 -8 ------- Run | Yrd Mat Mat Mat Combat Hostiles Destroyed 32 | . 7 7 18 Guns 32 | . 7 7 18 Classes Destroyed 9 | . 3 1 5 Hauler 1 | . . . 1 Swarmer 13 | . 5 4 4 Grunt 9 | . 2 . 7 Brawler 1 | . . . 1 Duelist 1 | . . . 1 Sentry 5 | . . 3 2 Specialist 2 | . . . 2 Heavy 1 | . . . 1 Botcube 1 | . 1 . . Best Kill Streak 4 | . 4 4 4 Combat Bots Only 4 | . 4 4 4 Max Kills in Single Turn 1 | . 1 1 1 Gunslinging . | . . . . Exploded . | . . . . Melee . | . . . . Uniques/NPCs Destroyed . | . . . . Combat | -11 -10 -9 -8 -------- Run | Yrd Mat Mat Mat Hostile Shots Fired 239 | . 29 36 174 Missed 74 | . 15 9 50 Hits 165 | . 14 27 124 Melee 5 | . . . 5 Projectile 160 | . 14 27 119 Critical Strikes 9 | . . 1 8 Damage Taken 2814 | . 115 319 2380 Core 640 | . . 84 556 Absorbed by Shields . | . . . . Core Remaining (%) 93 | 100 100 79 . Volleys Fired 165 | . 26 18 121 Largest 2 | . 2 2 2 Hottest 110 | . 90 43 110 Shots Fired 281 | . 52 36 193 Gun 281 | . 52 36 193 Cannon . | . . . . Launcher . | . . . . Special . | . . . . Kinetic 233 | . 18 36 179 Thermal 34 | . 34 . . Explosive . | . . . . Electromagnetic 14 | . . . 14 Robot Hit Streak 22 | . 21 9 22 Robot Miss Streak 4 | . 2 2 4 Penetration Max 1 | . . . 1 Secondary Targets 2 | . 1 . 1 Max Gunslinging Chain 1 | . 1 . 1 Shots Hit Robots 220 | . 41 23 156 Core Hits 82 | . 19 10 53 Critical Kills . | . . . . Critical Parts Destroyed . | . . . . Critical Strikes 1 | . 1 . . Burn 1 | . 1 . . Melee Attacks . | . . . . Impact . | . . . . Slashing . | . . . . Piercing . | . . . . Sneak Attacks . | . . . . Combat Hostiles . | . . . . Follow-up Attacks . | . . . . Damage Inflicted 2735 | . 502 323 1910 Guns 2638 | . 502 323 1813 Cannons . | . . . . Explosions 97 | . . . 97 Melee . | . . . . Ramming . | . . . . Kinetic 2151 | . 148 323 1680 Thermal 451 | . 354 . 97 Explosive . | . . . . Electromagnetic 133 | . . . 133 Impact . | . . . . Slashing . | . . . . Piercing . | . . . . Highest Corruption 1 | . . 1 . Average Corruption 1 | . . 1 . Corruption Purged . | . . . . Corruption Blocked . | . . . . Effects 1 | . . 1 . Data Loss (major) 1 | . . 1 . Overload Shots . | . . . . Overflow Damage . | . . . . Projectiles . | . . . . Explosions . | . . . . Melee . | . . . . Knockbacks . | . . . . Impact . | . . . . Kinetic . | . . . . Secondary . | . . . . Self-Inflicted Damage . | . . . . Shots . | . . . . Rammed . | . . . . Targets Rammed . | . . . . Kicked . | . . . . Crushed . | . . . . Highest Temperature 390 | . 390 18 57 Average Temperature 138 | . 161 13 22 Received Heat Transfer 903 | . 12 90 801 Effects 1 | . 1 . . Short Circuit 1 | . 1 . . Siege Activations . | . . . . Martial Activations . | . . . . Shielding Activations . | . . . . Robots Disrupted . | . . . . Combat Hostiles . | . . . . Robots Corrupted . | . . . . Combat Hostiles . | . . . . Parts Fried . | . . . . Impact Corruptions . | . . . . Robots Melted . | . . . . Combat Hostiles . | . . . . Parts Melted 1 | . 1 . . Heat Transferred 1104 | . 1004 . 100 Parts Sabotaged . | . . . . Parts Stolen . | . . . . Parts Stripped . | . . . . Power Chain Reactions 1 | . . . 1 Alert | -11 -10 -9 -8 ------- Run | Yrd Mat Mat Mat Maximum Alert Level . | . . . . Low Security (%) 100 | . 100 100 100 Level 1 . | . . . . Level 2 . | . . . . Level 3 . | . . . . Level 4 . | . . . . Level 5 . | . . . . High Security . | . . . . Max Security . | . . . . Peak Influence 117 | . 101 101 117 Initial 26 | . . 26 . Average 36 | . 23 31 44 Influence Increases 902 | . 171 191 540 Destroy 0b10 Robot/C 640 | . 140 140 360 Destroy 0b10 Robot/NC 5 | . . . 5 Destroy Leader 162 | . 30 40 92 Successful Hack 9 | . . 9 . Destroy Structure 11 | . 1 2 8 Lose Combat Pursuer 75 | . . . 75 Influence Decreases 882 | . 108 254 520 Entered New Map 37 | . . 37 . Time Decay 600 | . 108 156 336 Lost Part 194 | . . 10 184 Purge Threat 51 | . . 51 . Squads Dispatched 7 | . 3 . 4 Investigation 2 | . 1 . 1 Extermination . | . . . . Reinforcement 5 | . 2 . 3 Assault . | . . . . Garrison . | . . . . Intercept . | . . . . Searches Triggered . | . . . . Construction Impeded . | . . . . Haulers Reinforced . | . . . . Active Scanning Responses . | . . . . Cargo Convoy Interrupts . | . . . . Stealth | -11 -10 -9 -8 --------- Run | Yrd Mat Mat Mat Distress Signals 7 | . 2 3 2 Communications Jammed . | . . . . Distress Signals . | . . . . Times Spotted 56 | . 16 11 29 Peak Tracking Total 5 | . 5 4 5 Tactical Retreats 5 | . . . 5 Traps | -11 -10 -9 -8 ------- Run | Yrd Mat Mat Mat Traps Triggered 4 | . 2 1 1 Indirectly . | . . . . Trap Hack Attempts . | . . . . Triggered . | . . . . Disarmed . | . . . . Reprogrammed . | . . . . Reused . | . . . . Traps Extracted . | . . . . Installed . | . . . . Triggered . | . . . . Machines | -11 -10 -9 -8 ---------- Run | Yrd Mat Mat Mat Machines Disabled 1 | . 1 . . Max in Single Turn 1 | . 1 . . Machines Repaired . | . . . . Machines Dismantled . | . . . . Machines Sabotaged . | . . . . Overloaded Fab Kills . | . . . . Hacking | -11 -10 -9 -8 --------- Run | Yrd Mat Mat Mat Machines Accessed 6 | . 2 3 1 Terminals 6 | . 2 3 1 Fabricators . | . . . . Repair Stations . | . . . . Recycling Units . | . . . . Scanalyzers . | . . . . Garrison Access . | . . . . Total Hacks 18 | . 5 10 3 Successful 2 | . . 2 . Failed 16 | . 5 8 3 Catastrophic 4 | . 1 3 . Database Lockouts . | . . . . Manual 18 | . 5 10 3 Terminals 18 | . 5 10 3 Fabricators . | . . . . Repair Stations . | . . . . Recycling Units . | . . . . Scanalyzers . | . . . . Garrison Access . | . . . . Terminal Hacks 2 | . . 2 . Level Access Points 1 | . . 1 . Unreport Threat 1 | . . 1 . Fabricator Hacks . | . . . . Repair Station Hacks . | . . . . Recycling Unit Hacks . | . . . . Scanalyzer . | . . . . Garrison Access Hacks . | . . . . Unauthorized Hacks . | . . . . Terminals . | . . . . Fabricators . | . . . . Repair Stations . | . . . . Recycling Units . | . . . . Scanalyzers . | . . . . Garrison Access . | . . . . Data Cores Recovered . | . . . . Used . | . . . . Hacking Detections 6 | . 2 3 1 Full Trace Events . | . . . . Feedback Events . | . . . . Feedback Blocked . | . . . . Robot Schematics Acquired . | . . . . Robots Built . | . . . . Authchips . | . . . . Time . | . . . . Total Robot Build Rating . | . . . . Part Schematics Acquired . | . . . . Parts Built . | . . . . Authchips . | . . . . Time . | . . . . Total Part Build Rating . | . . . . Part Studies Acquired . | . . . . Parts Repaired . | . . . . Time . | . . . . Parts Recycled . | . . . . Recycled Matter . | . . . . Retrieved Matter . | . . . . Retrieved Components . | . . . . Parts Scanalyzed . | . . . . Part Schematics Acquired . | . . . . Parts Damaged . | . . . . Bothacking | -11 -10 -9 -8 ------------ Run | Yrd Mat Mat Mat Used RIF Installer . | . . . . Robots Hacked . | . . . . Non-combat . | . . . . Combat . | . . . . Robot Hacks Applied . | . . . . Relay Couplers Released . | . . . . Fabnet Peak Effective % . | . . . . Robots Rewired . | . . . . Allies Hacked . | . . . . Hacks Repelled . | . . . . Allies | -11 -10 -9 -8 -------- Run | Yrd Mat Mat Mat Total Allies 1 | . 1 . . Largest Group 1 | . 1 . . Highest-Rated Group 37 | . 37 . . Highest-Rated Ally 37 | . 37 . . Total Orders . | . . . . Ally Attacks . | . . . . Total Damage . | . . . . Kills . | . . . . Allies Corrupted . | . . . . Allies Melted . | . . . . Intel | -11 -10 -9 -8 ------- Run | Yrd Mat Mat Mat Active Infowar (turns) . | . . . . Robot Analysis Total . | . . . . Derelict Logs Recovered . | . . . . Drone Launches . | . . . . Drone Recoveries . | . . . . Exploration | -11 -10 -9 -8 ------------- Run | Yrd Mat Mat Mat Turns Passed 1677 | . 402 448 827 Spaces Moved 868 | 1 255 288 324 Core 5 | . . . 5 Treads . | . . . . Legs 863 | 1 255 288 319 Wheels . | . . . . Hover . | . . . . Flight . | . . . . Fastest Speed 120 | 120 120 120 120 Average Speed 123 | 120 120 124 125 Slowest Speed 300 | 120 120 190 300 Overloaded Moves . | . . . . Propulsion Burnouts . | . . . . Robots Hopped 2 | . 2 . . Potential Cave-ins . | . . . . Cave-ins Triggered . | . . . . Exploration Rate (%) 23 | 2 46 23 24 Regions Visited 3 Branch Regions . Pre-discovered Areas . | . . . . Known Exits Taken 1 | . . 1 . Unknown Exits Taken 2 | 1 1 . . Scrap Searched . | . . . . Spaces Dug . | . . . . Terrain Destroyed 6 | . . . 6 Melee . | . . . . Projectile . | . . . . AOE 6 | . . . 6 Terrain Rammed . | . . . . Walls Destroyed . | . . . . Machines Disabled . | . . . . Actions | -11 -10 -9 -8 --------- Run | Yrd Mat Mat Mat Total 1211 | . 298 344 569 Wait 115 | . 1 27 87 Move 861 | . 250 287 324 Hop 2 | . 2 . . Pick Up 14 | . 6 5 3 Fast Attach 13 | . 3 1 9 Attach 12 | . 1 1 10 Detach . | . . . . Swap 13 | . 2 1 10 Drop 16 | . 7 4 5 Fire 165 | . 26 18 121 Melee . | . . . . Ram . | . . . . Kick . | . . . . Crush . | . . . . Escape Stasis . | . . . . Rewire . | . . . . Trap . | . . . . Miscellaneous . | . . . . Route ------- -11/Scrapyard -10/Materials (discovered 2 exits: *Mat / [*Min]) -9/Materials (discovered 4 exits: *Mat x3 / [*Min]) -8/Materials History --------- Turn | Location | Event 1 | -11/Scrapyard | Discovered new exit (range 0) 1 | -11/Scrapyard | Entered Materials 12 | -10/Materials | Botcube activated 26 | -10/Materials | Botcube completed mutation into core form, armed with 2 guns. 104 | -10/Materials | Murdered Mutated Botcube 104 | -10/Materials | Destroyed Mutated Botcube 310 | -10/Materials | Build established: Mutant 339 | -10/Materials | Discovered new exit (range 7) 383 | -10/Materials | Discovered new exit (range 16) 403 | -10/Materials | Entered another Materials area 403 | -9/Materials | Evolved 2 slots: Utility x2 448 | -9/Materials | Discovered new exit (range 6) 735 | -9/Materials | Identified exit to Materials 851 | -9/Materials | Entered another Materials area 851 | -8/Materials | Evolved 2 slots: Propulsion x1, Utility x1 1261 | -8/Materials | Build established: Scavenger-Mutant 1389 | -8/Materials | Lost 3 parts (2n1u) 1564 | -8/Materials | Core integrity fell below 50% 1631 | -8/Materials | Core integrity fell below 20% 1639 | -8/Materials | Lost 13 parts (1p5n3u4w) 1678 | -8/Materials | Destroyed by G-47 Trooper with Particle Gun Last Messages --------------- 01590_ H-61 Shepherd destroyed. 01591_ U-05 Engineer builds a Wall. 01598_ Critical hit (Burn: +37). 01608_ Imp. Heat Sink destroyed. 01625_ G-47 Trooper destroyed. 01648_ Lgt. Assault Rifle destroyed. [Achievement: Hydra] 01649_ Chain reaction triggered in Lgt. Nuclear Core. 01658_ Arc Projector destroyed. 01660_ G-47 Trooper misfires. 01663_ U-05 Engineer builds a Wall. 01664_ U-05 Engineer lays Concrete. 01665_ U-05 Engineer builds a Wall. 01669_ U-05 Engineer lays Concrete. 01669_ Acquired Com. Wheel. 01669_ U-05 Engineer builds a Wall. 01672_ U-05 Engineer lays Concrete. 01674_ U-05 Engineer builds a Wall. 01674_ U-05 Engineer lays Concrete. Map ----- +----------------------------------------------------+ | ??????????????????????? #????????????# | | ???????????????????????? #????????????# !!! | | ???????????????????????? +????????????# !! | | ?????????????????????????# #????????????# !! | | ?????????????????????????# #??????####### | | ?????????????????????????# #??????# | | ?????????????????????????# #??????# ########## | | ????????????????????????## ######## # [#?? | | ????????????????????????# + #?? | | ????????????????????????# # """ #?? | | ????????????????????????# #??""" #?? | | ????????????????????????# #????" #?? | | ????????????????????????# #????????? | | ????????????????????????# ######### #####????????? | | ??????????????????????###+#######?# #????????????? | | ??????????????????????# ### ###??????????? | | ??????????????????????# ! # #??????????? | | ??????????????????????# # #??????????? | | ??????????????????????# + T #??????????? | | ??????????????????????# """ """ # #??????????? | | ??????????????????????# """ """ # #??????????? | | ??????????????????????# """ """ ## ##??????????? | | ??????????????????????# ## #???????????? | | ??????????????????????############ #???????????? | | ???????????????????????#[[!#?#???# #???????????? | | ???????????????????????#!@!# ##??# ####### ? | | ??????????????????????##=u[####### # | | ??????????????????????##==%gu*%=% # | | ??????????????????????##!ug#######= # | | ??????????????????????##!! ###???########### ? | | ??????????????????????######?????????????????? #? | | ???????????????????????###???????????????????????? | | ?????????????????????????????????????????????????? | | ?????????????????????????????????????????????????? | | ?????????????????????????????????????????????????? | | ?????????????????????????????????????????????????? | | ?????????????????????????????????????????????????? | | ?????????????????????????????????????????????????? | | ?????????????????????????????????????????????????? | | ?????????????????????????????????????????????????? | | ?????????????????????????????????????????????????? | | ?????????????????????????????????????????????????? | | ?????????????????????????????????????????????????? | | ?????????????????????????????????????????????????? | | ?????????????????????????????????????????????????? | | ?????????????????????????????????????????????????? | | ?????????????????????????????????????????????????? | | ?????????????????????????????????????????????????? | | ?????????????????????????????????????????????????? | | ?????????????????????????????????????????????????? | +----------------------------------------------------+ Best States ------------- Heat Dissipation 69 Energy Generation 14 Energy Capacity 250 Matter Stores 300 Matter Capacity 300 Sight Range 16 Terrain Scan Density 10 Armor Coverage 150 Evasion (%) 55 Targeting Accuracy 6 Item Schematics ----------------- None Robot Schematics ------------------ None Fabricated ------------ Nothing Repaired ---------- Nothing Studied --------- None Alien Tech Used ----------------- None Achievements -------------- Hydra Challenges ------------ None Game ------ Seed ReflectiveVariablePerforator Manual? 0 Play Time 00:18:31 Cumulative 126.2 hours Start 2026.01.18 @ 13:49:33 End 2026.01.18 @ 16:36:27 Sessions 1 Manual Loads 0 Difficulty Rogue Special Mode None Game No. 188 Rogue 171 Adventurer 15 Explorer 2 Win Type - Total 1 Types 1/0/0/0/0/0/0/0/0/0 Lore% 21 Gallery% 51 Achievement% 27 Wizard Run 0 Options --------- Layout 1 ASCII 0 Keyboard 0 Movement Arrows Keybinds 0 Fullscreen 1 Font 48/Smallcaps Map View 50x35 Zoom Use 0% Tactical HUD 1 Map Filters NONE Filters NONE Steam 1 RUN: e54475b4-59b6-4e16-bfea-9ee94e163629